{"text_format":"1","workbook":"xlsx","n_sheets":6,"sheets":["August, 2022","September, 2022","Selected Cells","Specific Worksheet","Whole Workbook","Whole Workbook (2)"],"not_rendered":{"charts":0,"images":0,"macros":0,"external_links":0,"defined_names":0,"comments":0,"pivot_tables":0},"unopened":[],"bounds":{"document_bytes":16777216,"sheet_cells":100000,"rows_first":2000,"rows_last":500,"rows_between":2000,"halvings":0,"cell_chars":16384,"cell_head_chars":4096},"cells_cut":0,"cells_raw":0,"read":"whole","date_system":"1900"}

{"sheet":"August, 2022","index":0,"n_rows":9,"n_cols":6,"rows_kept":9,"cut":false,"hidden":false,"merged":[[1,1,1,5]]}
[]
[null,"Sales Report- August, 2022"]
[]
[null,"Product","Quantity","Price/Qty.","Total Qty.","Sales"]
[null,"Onion",500,8,{"$f":"C5*D5","v":4000},{"$f":"D5*E5","v":32000}]
[null,"Potato",450,10,{"$f":"C6*D6","v":4500},{"$f":"D6*E6","v":45000}]
[null,"Pumpkin",200,15,3000,45000]
[null,"Tomato",650,7,4550,31850]
[null,"Cucumber",150,9,1350,12150]

{"sheet":"September, 2022","index":1,"n_rows":9,"n_cols":6,"rows_kept":9,"cut":false,"hidden":false,"merged":[[1,1,1,5]]}
[]
[null,"Sales Report- September, 2022"]
[]
[null,"Product","Quantity","Price/Qty.","Total Qty.","Sales"]
[null,"Onion",350,8,{"$f":"C5*D5","v":2800},{"$f":"D5*E5","v":22400}]
[null,"Potato",400,10,{"$f":"C6*D6","v":4000},40000]
[null,"Pumpkin",180,15,2700,40500]
[null,"Tomato",500,7,3500,24500]
[null,"Cucumber",180,9,1620,14580]

{"sheet":"Selected Cells","index":2,"n_rows":9,"n_cols":19,"rows_kept":9,"cut":false,"hidden":false,"merged":[[1,1,1,5],[1,14,1,18]]}
[]
[null,"Forcing Recalculation on Selected Cells",null,null,null,null,null,null,null,null,null,null,null,null,"Try Yourself"]
[]
[null,"Product","Quantity","Price/Qty.","Total Qty.","Sales",null,null,null,null,null,null,null,null,"Product","Quantity","Price/Qty.","Total Qty.","Sales"]
[null,"Onion",500,8,{"$f":"C5*D5","v":4000},{"$f":"D5*E5","v":32000},null,null,null,null,null,null,null,null,"Onion",500,8]
[null,"Potato",450,10,{"$f":"C6*D6","v":4500},45000,null,null,null,null,null,null,null,null,"Potato",450,10]
[null,"Pumpkin",200,15,3000,45000,null,null,null,null,null,null,null,null,"Pumpkin",200,15]
[null,"Tomato",650,7,4550,31850,null,null,null,null,null,null,null,null,"Tomato",650,7]
[null,"Cucumber",150,9,1350,12150,null,null,null,null,null,null,null,null,"Cucumber",150,9]

{"sheet":"Specific Worksheet","index":3,"n_rows":9,"n_cols":18,"rows_kept":9,"cut":false,"hidden":false,"merged":[[1,1,1,5],[1,13,1,17]]}
[]
[null,"Recalculating for Specific Worksheet",null,null,null,null,null,null,null,null,null,null,null,"Try Yourself"]
[]
[null,"Product","Quantity","Price/Qty.","Total Qty.","Sales",null,null,null,null,null,null,null,"Product","Quantity","Price/Qty.","Total Qty.","Sales"]
[null,"Onion",500,8,{"$f":"C5*D5","v":4000},{"$f":"D5*E5","v":32000},null,null,null,null,null,null,null,"Onion",500,8]
[null,"Potato",450,10,{"$f":"C6*D6","v":4500},45000,null,null,null,null,null,null,null,"Potato",450,10]
[null,"Pumpkin",200,15,3000,45000,null,null,null,null,null,null,null,"Pumpkin",200,15]
[null,"Tomato",650,7,4550,31850,null,null,null,null,null,null,null,"Tomato",650,7]
[null,"Cucumber",150,9,1350,12150,null,null,null,null,null,null,null,"Cucumber",150,9]

{"sheet":"Whole Workbook","index":4,"n_rows":9,"n_cols":19,"rows_kept":9,"cut":false,"hidden":false,"merged":[[1,1,1,5],[1,14,1,18]]}
[]
[null,"Recalculation in Whole Workbook",null,null,null,null,null,null,null,null,null,null,null,null,"Try Yourself"]
[]
[null,"Product","Quantity","Price/Qty.","Total Qty.","Sales",null,null,null,null,null,null,null,null,"Product","Quantity","Price/Qty.","Total Qty.","Sales"]
[null,"Onion",500,8,{"$f":"C5*D5","v":4000},{"$f":"D5*E5","v":32000},null,null,null,null,null,null,null,null,"Onion",500,8]
[null,"Potato",450,10,{"$f":"C6*D6","v":4500},45000,null,null,null,null,null,null,null,null,"Potato",450,10]
[null,"Pumpkin",200,15,3000,45000,null,null,null,null,null,null,null,null,"Pumpkin",200,15]
[null,"Tomato",650,7,4550,31850,null,null,null,null,null,null,null,null,"Tomato",650,7]
[null,"Cucumber",150,9,1350,12150,null,null,null,null,null,null,null,null,"Cucumber",150,9]

{"sheet":"Whole Workbook (2)","index":5,"n_rows":9,"n_cols":6,"rows_kept":9,"cut":false,"hidden":false,"merged":[[1,1,1,5]]}
[]
[null,"Recalculation in Whole Workbook"]
[]
[null,"Product","Quantity","Price/Qty.","Total Qty.","Sales"]
[null,"Onion",350,8,{"$f":"C5*D5","v":2800},{"$f":"D5*E5","v":22400}]
[null,"Potato",400,10,{"$f":"C6*D6","v":4000},40000]
[null,"Pumpkin",180,15,2700,40500]
[null,"Tomato",500,7,3500,24500]
[null,"Cucumber",180,9,1620,14580]